Cogmind - Beta 13 @@@ ROGUE MODE // 2024.04.06 @ 11:15:28 Player: cptwinky Result: Destroyed by A9-LM0(R) with Subdweller Machine Gun Performance ------------- Evolutions (0) 0 Regions Visited (2) 400 Robots Destroyed (20) 100 Value Destroyed (624) 624 Prototype IDs (10) 200 Alien Tech Used (0) 0 Bonus (0) 0 TOTAL SCORE: 1324 Bonus ------- None Cogmind --------- Core Integrity 0/250 Matter 278/300 Energy 175/200 System Corruption 0% Temperature Cool (0) Movement Rolling (125) Ox3 Location -10/Subcaves Parts ------- > --- POWER (1) -------- Subdweller Power Source > --- PROPULSION (2) --- Aluminum Leg Wheel > --- UTILITY (2) ------ Medium Storage Unit Makeshift Light Armor Plating > --- WEAPON (2) ------- Subdweller Machine Gun Subdweller Shrapnel Launcher > --- INVENTORY (10) --- Arachnoskeleton Makeshift Light Armor Plating Hacking Suite Power Bank Subdweller Beam Cannon Subdweller Machine Gun Datajack Makeshift Spear Peak State ------------ > --- POWER ------------ Subdweller Power Source > --- PROPULSION ------- Aluminum Leg Wheel > --- UTILITY ---------- Medium Storage Unit Makeshift Light Armor Plating > --- WEAPON ----------- Subdweller Machine Gun Makeshift Spear > --- INVENTORY -------- Arachnoskeleton Makeshift Light Armor Plating Hacking Suite Power Bank Riot Gun Light Cannon Subdweller Shrapnel Launcher Datajack [Rating: 19] Favorites ----------- Power Subdweller Power Source Engine Subdweller Power Source Propulsion Light Treads Treads Light Treads Leg Aluminum Leg Wheel Wheel Utility Medium Storage Unit Storage Medium Storage Unit Protection Makeshift Light Armor Plating Weapon Light Cannon Energy Gun Medium Laser Ballistic Gun Subdweller Machine Gun Ballistic Cannon Light Cannon Launcher Grenade Launcher Impact Weapon Hammer Piercing Weapon Makeshift Spear Build | -11 -10 -10 ------- Run | Yrd Mat Sub Slots Evolved . | . . . Power . | . . . Propulsion . | . . . Utility . | . . . Weapon . | . . . Parts Attached 33 | 2 7 24 Power 3 | . 1 2 Engine 3 | . 1 2 Core . | . . . Reactor . | . . . Propulsion 5 | 2 . 3 Treads 2 | 2 . . Leg 2 | . . 2 Wheel 1 | . . 1 Hover . | . . . Flight . | . . . Utility 3 | . 2 1 Device . | . . . Storage 1 | . 1 . Processor . | . . . Hackware . | . . . Protection 2 | . 1 1 Artifact . | . . . Weapon 22 | . 4 18 Energy Gun . | . . . Energy Cannon . | . . . Ballistic Gun 4 | . . 4 Ballistic Cannon 10 | . 3 7 Launcher 2 | . . 2 Special Weapon . | . . . Impact Weapon 3 | . 1 2 Slashing Weapon . | . . . Piercing Weapon 3 | . . 3 Special Melee Weapon . | . . . Unidentified Prototypes . | . . . Parts Lost 7 | . . 7 Power 2 | . . 2 Propulsion 3 | . . 3 Utility . | . . . Weapon 2 | . . 2 Highest Loss Streak 5 | . . 5 To Critical Strikes . | . . . Average Slot Usage (%) 95 | . 88 99 Engine 13 | . 14 13 Treads 19 | . 28 15 Leg 4 | . . 6 Wheel 4 | . . 5 Storage 14 | . 14 14 Protection 10 | . 3 14 Ballistic Gun 7 | . 2 9 Ballistic Cannon 17 | . 22 15 Piercing Weapon 1 | . . 2 Naked Turns . | . . . Heaviest Build 27 | 13 20 27 Greatest Support 40 | 40 40 40 Greatest Overweight (x) 2 | . . 2 Average Overweight (x) . | . . 1 Largest Inventory Capacity 10 | 8 10 10 Average Capacity 9 | 8 8 10 Most Carried 10 | 6 9 10 Average Carried 8 | 6 8 9 Final Capacity 10 | 8 10 10 Final Carried 10 | 6 9 10 Class Distribution -------------------- 94% | Mutant 5% | Scavenger-Mutant Dominant Class ---------------- Mutant | -10/Materials Mutant | -10/Subcaves Resources | -11 -10 -10 ----------- Run | Yrd Mat Sub Matter Collected 957 | 205 200 552 Remotely . | . . . Salvage Created 556 | . 204 352 Parts 34 | . 16 18 Haulers Intercepted 1 | . 1 . Recyclers Shooed . | . . . Parts Field Recycled . | . . . Retrieved Matter . | . . . Parts Self-Destructed 5 | . . 5 Prevented . | . . . Kills | -11 -10 -10 ------- Run | Yrd Mat Sub Combat Hostiles Destroyed 17 | . 7 10 Guns 3 | . . 3 Cannons 14 | . 7 7 Classes Destroyed 7 | . 5 2 Hauler 1 | . 1 . Operator 1 | . 1 . Watcher 1 | . 1 . Swarmer 3 | . 3 . Grunt 6 | . 4 2 Cobbler 1 | . . 1 Subdweller 8 | . . 8 Best Kill Streak 3 | . 3 2 Combat Bots Only 3 | . 3 2 Max Kills in Single Turn 1 | . 1 1 Gunslinging . | . . . Exploded . | . . . Melee . | . . . Uniques/NPCs Destroyed . | . . . Combat | -11 -10 -10 -------- Run | Yrd Mat Sub Hostile Shots Fired 117 | . 32 85 Missed 30 | . 8 22 Damage Taken 1630 | . 232 1398 Core 251 | . 40 211 Absorbed by Shields . | . . . Core Remaining (%) 100 | 100 . . Volleys Fired 76 | . 24 52 Largest 2 | . 2 2 Hottest 70 | . 70 70 Shots Fired 150 | . 48 102 Gun 53 | . 4 49 Cannon 96 | . 44 52 Launcher 1 | . . 1 Special . | . . . Kinetic 147 | . 46 101 Thermal 2 | . 2 . Explosive 1 | . . 1 Electromagnetic . | . . . Robot Hit Streak 19 | . 12 19 Robot Miss Streak 5 | . 5 2 Penetration Max . | . . . Secondary Targets 1 | . . 1 Max Gunslinging Chain 1 | . . 1 Shots Hit Robots 99 | . 29 70 Core Hits 33 | . 12 21 Critical Kills . | . . . Critical Parts Destroyed . | . . . Critical Strikes 5 | . 2 3 Destroy 1 | . . 1 Blast 4 | . 2 2 Melee Attacks 31 | . 14 17 Impact 24 | . 14 10 Slashing . | . . . Piercing 7 | . . 7 Sneak Attacks 1 | . . 1 Combat Hostiles . | . . . Follow-up Attacks . | . . . Damage Inflicted 1918 | . 484 1434 Guns 670 | . 36 634 Cannons 1068 | . 440 628 Explosions 111 | . . 111 Melee 61 | . . 61 Ramming 8 | . 8 . Kinetic 1712 | . 450 1262 Thermal 26 | . 26 . Explosive 111 | . . 111 Electromagnetic . | . . . Impact . | . . . Slashing . | . . . Piercing 61 | . . 61 Highest Corruption . | . . . Average Corruption . | . . . Corruption Purged . | . . . Corruption Blocked . | . . . Overload Shots . | . . . Overflow Damage 9 | . . 9 Projectiles 9 | . . 9 Explosions . | . . . Melee . | . . . Knockbacks 15 | . 8 7 Impact . | . . . Kinetic 15 | . 8 7 Secondary . | . . . Self-Inflicted Damage 23 | . . 23 Shots 1 | . . 1 Rammed 2 | . 2 . Targets Rammed 2 | . 2 . Kicked . | . . . Crushed . | . . . Highest Temperature 72 | . 72 7 Average Temperature 26 | . 27 7 Received Heat Transfer 258 | . 54 204 Siege Activations . | . . . Robots Corrupted . | . . . Combat Hostiles . | . . . Parts Fried . | . . . Impact Corruptions . | . . . Robots Melted . | . . . Combat Hostiles . | . . . Parts Melted . | . . . Heat Transferred 74 | . 74 . Parts Sabotaged . | . . . Parts Stolen . | . . . Parts Stripped . | . . . Power Chain Reactions . | . . . Alert | -11 -10 -10 ------- Run | Yrd Mat Sub Peak Influence 192 | . 192 . Initial . | . . . Average 76 | . 77 . Maximum Alert Level . | . . . Low Security (%) 100 | 100 100 . Level 1 . | . . . Level 2 . | . . . Level 3 . | . . . Level 4 . | . . . Level 5 . | . . . High Security . | . . . Max Security . | . . . Squads Dispatched 2 | . 2 . Investigation 1 | . 1 . Extermination . | . . . Reinforcement 1 | . 1 . Assault . | . . . Garrison . | . . . Intercept . | . . . Searches Triggered . | . . . Construction Impeded . | . . . Haulers Reinforced . | . . . Active Scanning Responses . | . . . Cargo Convoy Interrupts . | . . . Stealth | -11 -10 -10 --------- Run | Yrd Mat Sub Distress Signals 2 | . 2 . Communications Jammed . | . . . Distress Signals . | . . . Times Spotted 31 | . 16 15 Peak Tracking Total 4 | . 4 3 Tactical Retreats 1 | . 1 . Traps | -11 -10 -10 ------- Run | Yrd Mat Sub Traps Triggered 1 | . . 1 Indirectly . | . . . Trap Hack Attempts . | . . . Triggered . | . . . Disarmed . | . . . Reprogrammed 7 | . 7 . Reused . | . . . Traps Extracted . | . . . Installed . | . . . Triggered . | . . . Machines | -11 -10 -10 ---------- Run | Yrd Mat Sub Machines Disabled 2 | . 1 1 Max in Single Turn 1 | . 1 1 Machines Repaired . | . . . Machines Dismantled . | . . . Machines Sabotaged . | . . . Overloaded Fab Kills . | . . . Hacking | -11 -10 -10 --------- Run | Yrd Mat Sub Machines Accessed 5 | . 4 1 Terminals 3 | . 3 . Fabricators . | . . . Repair Stations 1 | . 1 . Recycling Units . | . . . Scanalyzers . | . . . Garrison Access . | . . . Total Hacks 20 | . 19 1 Successful 6 | . 5 1 Failed 13 | . 13 . Catastrophic . | . . . Database Lockouts 1 | . 1 . Manual 9 | . 9 . Terminals 16 | . 16 . Fabricators . | . . . Repair Stations 3 | . 3 . Recycling Units . | . . . Scanalyzers . | . . . Garrison Access . | . . . Terminal Hacks 6 | . 5 1 Robot Analysis 2 | . 2 . Terminal Index 1 | . 1 . Reprogram Traps 2 | . 2 . Derelict Proto ID Bank 1 | . . 1 Fabricator Hacks . | . . . Repair Station Hacks . | . . . Recycling Unit Hacks . | . . . Scanalyzer . | . . . Garrison Access Hacks . | . . . Unauthorized Hacks . | . . . Terminals . | . . . Fabricators . | . . . Repair Stations . | . . . Recycling Units . | . . . Scanalyzers . | . . . Garrison Access . | . . . Data Cores Recovered . | . . . Used . | . . . Hacking Detections 4 | . 4 . Full Trace Events 2 | . 2 . Feedback Events . | . . . Feedback Blocked . | . . . Robot Schematics Acquired . | . . . Robots Built . | . . . Authchips . | . . . Time . | . . . Total Robot Build Rating . | . . . Part Schematics Acquired . | . . . Parts Built . | . . . Authchips . | . . . Time . | . . . Total Part Build Rating . | . . . Parts Repaired . | . . . Time . | . . . Parts Recycled . | . . . Recycled Matter . | . . . Retrieved Matter . | . . . Retrieved Components . | . . . Parts Scanalyzed . | . . . Part Schematics Acquired . | . . . Parts Damaged . | . . . Bothacking | -11 -10 -10 ------------ Run | Yrd Mat Sub Used RIF Installer . | . . . Robots Hacked . | . . . Non-combat . | . . . Combat . | . . . Robot Hacks Applied . | . . . Relay Couplers Released . | . . . Fabnet Peak Effective % . | . . . Robots Rewired . | . . . Allies Hacked . | . . . Hacks Repelled . | . . . Allies | -11 -10 -10 -------- Run | Yrd Mat Sub Total Allies . | . . . Largest Group . | . . . Highest-Rated Group . | . . . Highest-Rated Ally . | . . . Total Orders . | . . . Ally Attacks . | . . . Total Damage . | . . . Kills . | . . . Allies Corrupted . | . . . Allies Melted . | . . . Intel | -11 -10 -10 ------- Run | Yrd Mat Sub Robot Analysis Total 2 | . 2 . Derelict Logs Recovered . | . . . Drone Launches . | . . . Drone Recoveries . | . . . Exploration | -11 -10 -10 ------------- Run | Yrd Mat Sub Turns Passed 2603 | 13 819 1771 Spaces Moved 1364 | 7 312 1045 Core . | . . . Treads 825 | 7 312 506 Legs 2 | . . 2 Wheels 537 | . . 537 Hover . | . . . Flight . | . . . Fastest Speed 110 | 160 160 110 Average Speed 140 | 160 160 134 Slowest Speed 260 | 160 160 260 Overloaded Moves . | . . . Propulsion Burnouts . | . . . Robots Hopped . | . . . Cave-ins Triggered . | . . . Exploration Rate (%) 39 | 2 46 69 Regions Visited 2 Branch Regions 1 Pre-discovered Areas 1 | . . 1 Known Exits Taken . | . . . Unknown Exits Taken 2 | 1 1 . Scrap Searched 16 | . . 16 Spaces Dug 11 | . . 11 Terrain Destroyed 13 | . . 13 Melee 4 | . . 4 Projectile 2 | . . 2 AOE 7 | . . 7 Terrain Rammed . | . . . Walls Destroyed . | . . . Machines Disabled . | . . . Actions | -11 -10 -10 --------- Run | Yrd Mat Sub Total 1841 | 8 559 1274 Wait 308 | . 188 120 Move 1362 | 6 311 1045 Hop . | . . . Pick Up 14 | . 6 8 Fast Attach 10 | . 4 6 Attach 5 | . . 5 Detach 1 | . 1 . Swap 18 | 2 3 13 Drop 14 | . 6 8 Fire 76 | . 24 52 Melee 31 | . 14 17 Ram . | . . . Kick . | . . . Crush 2 | . 2 . Escape Stasis . | . . . Rewire . | . . . Trap . | . . . Miscellaneous . | . . . Route ------- -11/Scrapyard -10/Materials (discovered 2 exits: [*Mat] / *Sub) -10/Subcaves (discovered 1 exit: [*Mat]) History --------- Turn | Location | Event 4 | -11/Scrapyard | Discovered new exit (range 3) 14 | -11/Scrapyard | Entered Materials 235 | -10/Materials | Central database locked down 316 | -10/Materials | Discovered new exit (range 8) 318 | -10/Materials | Build established: Mutant 807 | -10/Materials | Discovered new exit (range 7) 833 | -10/Materials | Entered Subcaves 986 | -10/Subcaves | Learned location of Zion (-6) 986 | -10/Subcaves | Met a Zionite searching for "candidates" 1156 | -10/Subcaves | Disturbed a concealed Subdweller 1779 | -10/Subcaves | A swath of the cavern ceiling suddenly collapsed 1800 | -10/Subcaves | A Subdweller sparked back to life 1800 | -10/Subcaves | A Subdweller sparked back to life 1800 | -10/Subcaves | A Subdweller sparked back to life 1831 | -10/Subcaves | Core integrity fell below 50% 1866 | -10/Subcaves | Found Prototype Leg 1886 | -10/Subcaves | Lost 5 parts (1p3n1w) 2112 | -10/Subcaves | Visited 4L-MR0's lab 2118 | -10/Subcaves | Identified Arachnoskeleton 2127 | -10/Subcaves | Found Power Bank 2199 | -10/Subcaves | Shifting Twisted Machinery released Sub. Beam Cannon 2465 | -10/Subcaves | Discovered new exit (range 9) 2599 | -10/Subcaves | Core integrity fell below 20% 2604 | -10/Subcaves | Destroyed by A9-LM0(R) with Subdweller Machine Gun Last Messages --------------- 02214_ Dropped Riot Gun. 02217_ Acquired Sub. Beam Cannon. 02314_ MT-J8F(R) suffers critical hit (Blast). 02314_ MT-J8F(R) destroyed. 02318_ Acquired 39 matter. 02342_ Acquired 1 matter. 02407_ YE-AF8(R) knocked back. 02419_ YE-AF8(R) Sub. Monowheel blasted off. 02419_ YE-AF8(R) destroyed. 02429_ Acquired 27 matter. 02431_ Acquired 5 matter. 02433_ Acquired 1 matter. 02434_ Acquired 2 matter. 02438_ Subatomizers dissect the Disposable Heat Sink. 02453_ Dropped Lgt. Cannon. 02454_ Acquired Sub. Machine Gun. 02461_ Subatomizers dissect the Disposable Heat Sink. 02465_ EXIT=FOUND 02569_ Acquired 19 matter. Map ----- +----------------------------------------------------+ | ????????????????????????# ##### ### | | ???????????????????????# #### ##? | | ???????????????????????# ## #? | | ???????????????????????## ## ### #? | | ????????????????????????###### ### ##? | | ????????????????????????????# ##? | | ????????????????????????????# ## | | ????????????????????????????## !]| # | | ?????????????????????????????# ## ## | | ?????????????????????????????### #### ## | | ???????????????????????????????# ##?### | | ??????????????????????????????## #???# | | ?????????????????????????????## #???# | | ????????????###?#####?????#### ####???## ### | | ???????????## ## ##???## #??###??####??## | | ????????#??# ###?# #### ####??????? | | ????? ##$"# ### ##""##"###????? | | ??????# "" """"""#????# | | ????# "" """" ###### | | ?????" # "" # < | | ????????### R ### ### | | ??????????# ## #?##""#?## # | | ??????????#??## ## #??####??### ## | | ??????????????## ;### ####??????????###? | | ???????????????#; % ; ### #?????????????? | | ???????????????#; ;; @; #?## #?????????????? | | ???????????????# # ;;#### #?????????????? | | ???????????????# ### ;; #?????????????? | | ??????????????? #?#; ;; #?????????????? | | ?????????????? #?#; #?????????????? | | ?????????????## #?## ##?????????????? | | ??????????????## ???# ###??????????????? | | ???????????????# ???#### #????????????????? | | ???????????????? ??????##### #???????????????? | | ????????????????????????????# #??????????????? | | ???????????????????????????? #?????????????? | | ??????????????????????????? #####?????????????? | | ??????????????????????????? #?????????????????? | | ??????????????????????????# #?????????????????? | | ??????????????????????????## ?????????????????? | | ???????????????????????????# ?????????????????? | | ??????????????????????????? ?????????????????? | | ??????????????????????????? ????????????????? | | ???????????????????????????## ????????????????? | | ????????????????????????????? ????????????????? | | ????????????????????????????? ????????????????? | | ????????????????????????????? ?????????????????? | | ?????????????????????????????????????????????????? | | ?????????????????????????????????????????????????? | | ?????????????????????????????????????????????????? | +----------------------------------------------------+ Best States ------------- Heat Dissipation 25 Energy Generation 10 Energy Capacity 250 Matter Stores 300 Matter Capacity 300 Sight Range 16 Terrain Scan Density 10 Armor Coverage 100 Evasion (%) 40 Recoil Reduction 2 Item Schematics ----------------- None Robot Schematics ------------------ None Fabricated ------------ Nothing Alien Tech Used ----------------- None Achievements -------------- None Challenges ------------ None Game ------ Seed GatlingActuatorDiverter Manual? 0 Play Time 00:14:06 Cumulative 1508.0 hours Start 2024.04.06 @ 11:01:59 End 2024.04.06 @ 11:15:28 Sessions 1 Manual Loads 0 Difficulty Rogue Special Mode None Game No. 1046 Rogue 1042 Adventurer 4 Explorer 0 Win Type - Total 187 Types 137/11/13/8/2/1/3/8/4 Lore% 95 Gallery% 99 Achievement% 98 Wizard Run 0 Options --------- Layout 2 ASCII 0 Keyboard 1 Movement Vi Keybinds 0 Fullscreen 0 Font 24/Terminus Map View 59x48 Zoom Use 0% Tactical HUD 1 Map Filters NONE Filters NONE Steam 1 RUN: e3dd15c6-9e1b-47e5-b8bd-0d1c3869a13f